fUSD/lending_fUSD_20240317
["ID","MTS","AMOUNT","RATE_DAILY","PERIOD"]
[319338433,1710672643723,-500.0,0.00018999,2]
[319338434,1710672643732,-500.0,0.00018999,2]
[319338435,1710672643741,-500.0,0.00018999,2]
[319338436,1710672643750,-500.0,0.00018999,2]
[319338437,1710672643759,-500.0,0.00018999,2]
[319338438,1710672643768,-500.0,0.00018999,2]
[319338439,1710672643777,-158.5,0.00018999,2]
[319338440,1710672643786,-283.4829094,0.00018999,2]
[319338441,1710672643795,-770.11,0.00018999,2]
[319338442,1710672643805,-770.11,0.00018999,2]
[319338443,1710672643815,-770.11,0.00018999,2]
[319338444,1710672643824,-770.11,0.00018999,2]
[319338445,1710672643833,-770.11,0.00018999,2]
[319338446,1710672643843,-770.11,0.00018999,2]
[319338447,1710672643852,-770.12275868,0.00018999,2]
[319338448,1710672643862,-5344.98,0.00018999,2]
[319338449,1710672643871,-5344.98,0.00018999,2]
[319338450,1710672643881,-5344.98,0.00018999,2]
[319338451,1710672643890,-5344.98,0.00018999,2]
[319338452,1710672643900,-5344.98,0.00018999,2]
[319338453,1710672643910,-5344.98,0.00018999,2]
[319338454,1710672643920,-5345.05909409,0.00018999,2]
[319338455,1710672643929,-500.0,0.00018999,2]
[319338456,1710672643939,-500.0,0.00018999,2]
[319338457,1710672643949,-500.0,0.00018999,2]
[319338458,1710672643959,-500.0,0.00018999,2]
[319338459,1710672643969,-500.0,0.00018999,2]
[319338460,1710672643978,-500.0,0.00018999,2]
[319338461,1710672643987,-500.0,0.00018999,2]
[319338462,1710672643996,-500.0,0.00018999,2]
[319338463,1710672644006,-162.06516901,0.00019,3]
[319338464,1710672644015,-75621.71921923,0.00019,2]
[319338465,1710672644024,-467.58029638,0.00019,2]
[319338466,1710672644033,-3060340.05148421,0.00019,2]
[319338467,1710672644163,-357.26499999,0.00017142,2]
[319338468,1710672644185,-142.73500001,0.00017142,2]
[319338469,1710672644194,-500.0,0.00017142,2]
[319338470,1710672644203,-1400.0,0.00017939,2]
[319338471,1710672644213,-18181.29507015,0.00019,2]
[319338472,1710672644402,-500.0,0.00017142,2]
[319338473,1710672644412,-500.0,0.00017142,2]
[319338474,1710672644421,-500.0,0.00017142,2]
[319338475,1710672644430,-437.99466725,0.00017142,2]
[319338476,1710672644442,-62.00533275,0.00017142,2]
[319338477,1710672644452,-1520.36154773,0.00019,2]
[319338478,1710672644463,-1420.10342999,0.00019,2]
[319338479,1710672644474,-432.0,0.00019,2]
[319338480,1710672644485,-251.33362,0.00019,2]
[319338481,1710672644497,-5958.93923946,0.00019,2]
[319338482,1710672644508,-16065.02124225,0.00019,2]
[319338483,1710672644530,-687.37573899,0.00019,2]
[319338484,1710672644543,-1008.28687562,0.00019,2]
[319338485,1710672644561,-500.0,0.00017143,2]
[319338486,1710672644573,-1739130.44785067,0.00019,2]
[319338487,1710672644588,-5378.256931,0.00019,2]
[319338488,1710672644599,-2499.40594227,0.00019,2]
[319338489,1710672644610,-27160.0,0.00019,2]
[319338490,1710672644621,-3587.77202424,0.00019,2]
[319338491,1710672644640,-678.82,0.00019,2]
[319338492,1710672644652,-718.966599,0.00019,2]
[319338493,1710672644667,-485.23776,0.00019,2]
[319338498,1710672646128,-296.29600003,0.00017141,2]
[319338499,1710672646140,-404.48230813,0.00017141,2]
[319338500,1710672646193,-3265.44692455,0.00017141,2]
[319338501,1710672646204,-500.0,0.00017143,2]
[319338502,1710672646213,-500.0,0.00017143,2]
[319338503,1710672646222,-500.0,0.00017143,2]
[319338504,1710672646231,-500.0,0.00017938,2]
[319338505,1710672646244,-574.82,0.00018878,2]
[319338506,1710672646253,-16515.43990376,0.00019,2]
[319338507,1710672647223,-643.24708674,0.000185,2]
[319338508,1710672647233,-3402.35291326,0.00018879,2]
[319338509,1710672647255,-13054.604512,0.00018879,2]
[319338510,1710672647267,-2903.23605857,0.00018879,2]
[319338511,1710672647278,-852.00236598,0.00018879,2]
[319338512,1710672647291,-760.44053456,0.00018879,2]
[319338513,1710672647319,-6701.5,0.00018879,2]
[319338514,1710672647386,-501.69,0.00017939,2]
[319338515,1710672647396,-6431.31,0.00018879,2]
[319338516,1710672681858,9082.25036456,9e-05,2]
[319338517,1710672694244,10663.20814467,0.0001,2]
[319338518,1710672717189,69708.0582376,0.00014781,7]
[319338519,1710672717491,26816.64789283,6.94e-05,2]
[319338520,1710672799655,876.0493,0.0001171,2]
[319338523,1710672872909,207.63433117,0.0001,2]
[319338525,1710673197791,19555.90483113,0.0001,2]
[319338526,1710673198951,200.0,9.95e-05,2]
[319338527,1710673202414,150.0,0.0001,2]
[319338528,1710673202465,150.0,0.0001,2]
[319338529,1710673202618,150.0,0.0001,2]
[319338530,1710673202853,153.53410136,0.0001,2]
[319338531,1710673205944,363.45198863,0.0001,2]
[319338532,1710673216869,204.47293258,0.00011809,2]
[319338533,1710673217723,11042.00076162,0.0001,2]
[319338534,1710673223892,363.45198863,0.0001,2]
[319338535,1710673233661,5350.53346211,0.00011809,2]
[319338536,1710673245881,363.45198863,0.0001,2]
[319338537,1710673256257,484.03196119,0.00011809,2]
[319338538,1710673271896,363.45198863,0.00011809,2]
[319338539,1710673274030,704.00556808,0.00011809,2]
[319338540,1710673289896,363.45198863,0.00011809,2]
[319338541,1710673313901,363.45198863,0.00011809,2]
[319338542,1710673333900,363.45198863,0.00011809,2]
[319338543,1710673349488,200.0,0.0001175,2]
[319338544,1710673351911,363.45198863,0.00011809,2]
[319338545,1710673369904,363.45198863,0.00011809,2]
[319338546,1710673391907,363.45198863,0.00011809,2]
[319338547,1710673409910,243.08540223,0.00011809,2]
[319338548,1710673499355,256.15904543,0.0001175,2]
[319338549,1710673517851,159.13078531,0.000118,2]
[319338550,1710673544646,3000.8511,0.0001171,2]
[319338551,1710673559568,150.37,0.00010881,2]
[319338552,1710673606199,1283.84,0.00011431,2]
[319338569,1710673657347,529.04209343,0.00011809,2]
[319338578,1710673791614,5076.65971067,0.00011,2]
[319338583,1710673832232,-1169.53619494,0.0001181,2]
[319338584,1710673832298,-836.73496824,0.0001181,2]
[319338585,1710673832307,-560.62327142,0.000119,2]
[319338586,1710673832317,-798.58645921,0.00012,2]
[319338587,1710673832327,-285.36642689,0.000125,2]
[319338588,1710673832338,-159.13078531,0.00012502,2]
[319338589,1710673832347,-70.24792623,0.00013071,2]
[319338590,1710673832364,-10791.04398077,0.00013071,2]
[319338591,1710673832373,-150.0,0.00013137,2]
[319338592,1710673832383,-150.0,0.00013137,2]
[319338593,1710673832392,-159.13078531,0.00013205,2]
[319338594,1710673832402,-161.15,0.00013245,2]
[319338595,1710673832411,-400.0,0.00013245,2]
[319338596,1710673832420,-250.0,0.00013254,2]
[319338597,1710673832430,-187.48,0.00013288,2]
[319338598,1710673832439,-1867.23,0.00013376,2]
[319338599,1710673832449,-554.34,0.00013376,2]
[319338600,1710673832459,-2000.0,0.00013601,2]
[319338601,1710673832468,-1283.84,0.00013695,2]
[319338602,1710673832478,-250.0,0.00013699,2]
[319338603,1710673832487,-958.85,0.00013699,2]
[319338604,1710673832497,-200.0,0.00013699,2]
[319338605,1710673832506,-1500.0,0.00013699,4]
[319338606,1710673832515,-12151.36531444,0.000137,2]
[319338607,1710673832527,-5214.75423,0.000137,2]
[319338608,1710673832545,-1016.27333657,0.000137,2]
[319338609,1710673832556,-3102.56136883,0.000137,2]
[319338639,1710673838293,-2405.04575016,0.000137,2]
[319338640,1710673838302,-274.9637758,0.000137,2]
[319338641,1710673838312,-200.0,0.00013747,2]
[319338642,1710673838321,-10000.0,0.00013748,2]
[319338643,1710673838330,-150.0,0.00013748,2]
[319338644,1710673838340,-600.0,0.00013809,2]
[319338645,1710673838349,-159.13078531,0.00013907,2]
[319338646,1710673838358,-178.27,0.00014,2]
[319338647,1710673838367,-160.45,0.00014223,2]
[319338648,1710673838376,-150.99,0.00014223,2]
[319338649,1710673838386,-169.87,0.00014538,2]
[319338650,1710673838395,-178.27,0.00014548,2]
[319338651,1710673838403,-159.13078531,0.0001461,2]
[319338652,1710673838413,-17175.744852,0.00014781,7]
[319338653,1710673838421,-2210.9428,0.000149,2]
[319338654,1710673838430,-254.1727,0.000149,2]
[319338655,1710673838439,-400.0,0.00014901,2]
[319338656,1710673838448,-187.48,0.00014949,2]
[319338657,1710673838457,-154.16,0.00014986,2]
[319338658,1710673838466,-2500.0,0.00014997,2]
[319338659,1710673838475,-480485.46852992,0.00014999,2]
[319338660,1710673838484,-98665.87027552,0.00015,2]
[319338661,1710673838494,-550.0,0.00015,3]
[319338662,1710673838503,-19368.35751359,0.00015,2]
[319338663,1710673838512,-155.0,0.00015,2]
[319338664,1710673838521,-154.16,0.00015042,2]
[319338665,1710673838531,-178.27,0.00015096,2]
[319338666,1710673838541,-154.16,0.00015097,2]
[319338667,1710673838551,-499.99,0.00015097,2]
[319338668,1710673838561,-150.99,0.00015097,2]
[319338669,1710673838573,-9999.99,0.00015097,2]
[319338670,1710673838584,-150.99,0.00015097,2]
[319338671,1710673838593,-154.16,0.00015152,2]
[319338672,1710673838603,-500.0,0.0001519,2]
[319338673,1710673838615,-1000.0,0.000152,2]
[319338674,1710673838624,-154.16,0.00015207,2]
[319338675,1710673838634,-154.16,0.00015262,2]
[319338676,1710673838645,-6172.9296,0.000153,2]
[319338677,1710673838658,-4594.3304,0.000153,2]
[319338678,1710673838667,-159.13078531,0.00015312,2]
[319338679,1710673838677,-154.16,0.00015318,2]
[319338680,1710673838686,-2022.0,0.00015342,2]
[319338681,1710673838698,-154.16,0.00015373,2]
[319338682,1710673838707,-870.3329582,0.00015378,2]
[319338683,1710673838717,-5630.6365,0.0001538,2]
[319338684,1710673838727,-8249.71603753,0.000154,2]
[319338685,1710673838736,-154.16,0.00015428,2]
[319338686,1710673838746,-277.2553944,0.00015478,2]
[319338687,1710673838755,-1480.339219,0.00015478,2]
[319338688,1710673838764,-2977.43362081,0.00015478,2]
[319338689,1710673838774,-164.54575719,0.00015478,2]
[319338690,1710673838784,-67780.17365577,0.00015478,2]
[319338691,1710673838794,-359.87435267,0.00015478,2]
[319338692,1710673838803,-253.33043359,0.00015478,2]
[319338693,1710673838812,-326.36202036,0.00015478,2]
[319338694,1710673838822,-155.0,0.00015478,2]
[319338695,1710673838831,-10426.49285854,0.00015478,2]
[319338696,1710673838842,-11225.78406537,0.00015478,2]
[319338697,1710673838851,-695.12785261,0.00015478,2]
[319338698,1710673838861,-364.73602773,0.00015479,5]
[319338699,1710673838870,-5978.94722321,0.00015479,2]
[319338700,1710673838880,-7585.40772748,0.00015479,2]
[319338701,1710673838889,-500.0,0.00015479,2]
[319338702,1710673838898,-500.0,0.00015479,2]
[319338703,1710673838907,-500.0,0.00015479,2]
[319338704,1710673838917,-449.06162621,0.00015479,2]
[319338705,1710673838926,-500.0,0.00015479,2]
[319338706,1710673838935,-500.0,0.00015479,2]
[319338707,1710673838944,-500.0,0.00015479,2]
[319338708,1710673838954,-500.0,0.00015479,2]
[319338709,1710673838963,-500.0,0.00015479,2]
[319338710,1710673838972,-500.0,0.00015479,2]
[319338711,1710673838981,-273.96039749,0.00015479,2]
[319338712,1710673838991,-500.0,0.00015479,2]
[319338714,1710673839000,-500.0,0.00015479,2]
[319338716,1710673839009,-500.0,0.00015479,2]
[319338717,1710673839018,-508.20682566,0.00015479,2]
[319338718,1710673839236,-500.0,0.00015479,2]
[319338719,1710673839246,-466.99369679,0.00015479,2]
[319338720,1710673839255,-500.0,0.00015479,2]
[319338721,1710673839264,-500.0,0.00015479,2]
[319338722,1710673839272,-500.0,0.00015479,2]
[319338723,1710673839281,-646.68399917,0.00015479,2]
[319338724,1710673839290,-500.0,0.00015479,2]
[319338725,1710673839299,-500.0,0.00015479,2]
[319338726,1710673839307,-500.0,0.00015479,2]
[319338727,1710673839316,-500.0,0.00015479,2]
[319338728,1710673839324,-500.0,0.00015479,2]
[319338729,1710673839333,-500.0,0.00015479,2]
[319338730,1710673839343,-501.90625643,0.00015479,2]
[319338731,1710673839352,-500.0,0.00015479,2]
[319338732,1710673839361,-500.0,0.00015479,2]
[319338733,1710673839370,-500.0,0.00015479,2]
[319338734,1710673839379,-500.0,0.00015479,2]
[319338735,1710673839388,-500.0,0.00015479,2]
[319338736,1710673839397,-500.0,0.00015479,2]
[319338737,1710673839407,-500.0,0.00015479,2]
[319338738,1710673839416,-500.0,0.00015479,2]
[319338739,1710673839425,-547.98331182,0.00015479,2]
[319338740,1710673839434,-500.0,0.00015479,2]
[319338741,1710673839444,-500.0,0.00015479,2]
[319338742,1710673839453,-500.0,0.00015479,2]
[319338743,1710673839462,-500.0,0.00015479,2]
[319338744,1710673839472,-500.0,0.00015479,2]
[319338745,1710673839481,-634.14,0.00015479,2]
[319338746,1710673839490,-500.0,0.00015479,2]
[319338747,1710673839499,-500.0,0.00015479,2]
[319338748,1710673839509,-500.0,0.00015479,2]
[319338749,1710673839519,-500.0,0.00015479,2]
[319338750,1710673839528,-502.99449697,0.00015479,2]
[319338751,1710673839538,-500.0,0.00015479,2]
[319338752,1710673839548,-500.0,0.00015479,2]
[319338753,1710673839560,-500.0,0.00015479,2]
[319338754,1710673839570,-500.0,0.00015479,2]
[319338755,1710673839583,-500.0,0.00015479,2]
[319338756,1710673839592,-500.0,0.00015479,2]
[319338757,1710673839602,-500.0,0.00015479,2]
[319338758,1710673839611,-500.0,0.00015479,2]
[319338759,1710673839620,-500.0,0.00015479,2]
[319338760,1710673839629,-500.0,0.00015479,2]
[319338761,1710673839639,-252.95821657,0.00015479,2]
[319338762,1710673839649,-500.0,0.00015479,2]
[319338763,1710673839659,-500.0,0.00015479,2]
[319338764,1710673839669,-500.0,0.00015479,2]
[319338765,1710673839679,-500.0,0.00015479,2]
[319338766,1710673839688,-500.0,0.00015479,2]
[319338767,1710673839698,-500.0,0.00015479,2]
[319338768,1710673839707,-500.0,0.00015479,2]
[319338769,1710673839716,-500.0,0.00015479,2]
[319338770,1710673839725,-500.0,0.00015479,2]
[319338771,1710673839735,-252.22,0.00015479,2]
[319338772,1710673839744,-500.0,0.00015479,2]
[319338773,1710673839753,-500.0,0.00015479,2]
[319338774,1710673839762,-500.0,0.00015479,2]
[319338775,1710673839771,-411.49634828,0.00015479,2]
[319338776,1710673839780,-500.0,0.00015479,2]
[319338777,1710673839790,-500.0,0.00015479,2]
[319338778,1710673839799,-500.0,0.00015479,2]
[319338779,1710673839809,-500.0,0.00015479,2]
[319338780,1710673839819,-500.0,0.00015479,2]
[319338781,1710673839828,-500.0,0.00015479,2]
[319338782,1710673839838,-500.0,0.00015479,2]
[319338783,1710673839847,-500.0,0.00015479,2]
[319338784,1710673839856,-500.0,0.00015479,2]
[319338785,1710673839866,-500.0,0.00015479,2]
[319338786,1710673839875,-500.0,0.00015479,2]
[319338787,1710673839885,-500.0,0.00015479,2]
[319338788,1710673839894,-500.0,0.00015479,2]
[319338789,1710673839904,-500.0,0.00015479,2]
[319338790,1710673839913,-500.0,0.00015479,2]
[319338791,1710673839922,-500.0,0.00015479,2]
[319338792,1710673839931,-500.0,0.00015479,2]
[319338793,1710673839939,-635.71447698,0.00015479,2]
[319338794,1710673839948,-500.0,0.00015479,2]
[319338795,1710673839958,-500.0,0.00015479,2]
[319338796,1710673839967,-500.0,0.00015479,2]
[319338797,1710673839976,-398.49230782,0.00015479,2]
[319338798,1710673839985,-500.0,0.00015479,2]
[319338799,1710673839995,-500.0,0.00015479,2]
[319338801,1710673840005,-500.0,0.00015479,2]
[319338803,1710673840014,-500.0,0.00015479,2]
[319338805,1710673840024,-365.30571271,0.00015479,2]
[319338807,1710673840033,-154.33844679,0.00015479,2]
[319338809,1710673840041,-281.51,0.00015479,2]
[319338811,1710673840050,-500.0,0.00015479,2]
[319338813,1710673840059,-500.0,0.00015479,2]
[319338815,1710673840069,-500.0,0.00015479,2]
[319338817,1710673840078,-500.0,0.00015479,2]
[319338818,1710673840088,-500.0,0.00015479,2]
[319338819,1710673840097,-500.0,0.00015479,2]
[319338820,1710673840106,-500.0,0.00015479,2]
[319338821,1710673840116,-500.0,0.00015479,2]
[319338823,1710673840126,-500.0,0.00015479,2]
[319338824,1710673840137,-500.0,0.00015479,2]
[319338825,1710673840146,-500.0,0.00015479,2]
[319338826,1710673840156,-501.75867438,0.00015479,2]
[319338827,1710673840164,-500.0,0.00015479,2]
[319338828,1710673840174,-558.66063322,0.00015479,2]
[319338829,1710673840183,-267.54607243,0.00015479,2]
[319338830,1710673840192,-500.0,0.00015479,2]
[319338831,1710673840201,-500.0,0.00015479,2]
[319338832,1710673840210,-500.0,0.00015479,2]
[319338833,1710673840219,-500.0,0.00015479,2]
[319338834,1710673840228,-500.0,0.00015479,2]
[319338836,1710673840237,-455.57,0.00015479,2]
[319338837,1710673840246,-500.0,0.00015479,2]
[319338839,1710673840254,-603.76580582,0.00015479,2]
[319338841,1710673840263,-500.0,0.00015479,2]
[319338843,1710673840272,-500.0,0.00015479,2]
[319338844,1710673840281,-500.0,0.00015479,2]
[319338845,1710673840290,-500.0,0.00015479,2]
[319338846,1710673840299,-500.0,0.00015479,2]
[319338847,1710673840308,-500.0,0.00015479,2]
[319338848,1710673840318,-500.0,0.00015479,2]
[319338849,1710673840327,-500.0,0.00015479,2]
[319338850,1710673840336,-431.53,0.00015479,2]
[319338851,1710673840345,-500.0,0.00015479,2]
[319338852,1710673840354,-500.0,0.00015479,2]
[319338853,1710673840364,-500.0,0.00015479,2]
[319338854,1710673840373,-500.0,0.00015479,2]
[319338855,1710673840381,-500.0,0.00015479,2]
[319338856,1710673840390,-500.0,0.00015479,2]
[319338857,1710673840400,-500.0,0.00015479,2]
[319338858,1710673840410,-500.0,0.00015479,2]
[319338859,1710673840419,-500.0,0.00015479,2]
[319338860,1710673840428,-500.0,0.00015479,2]
[319338861,1710673840438,-306.86030377,0.00015479,2]
[319338862,1710673840447,-500.0,0.00015479,2]
[319338863,1710673840457,-639.59,0.00015479,2]
[319338864,1710673840466,-500.0,0.00015479,2]
[319338865,1710673840474,-500.0,0.00015479,2]
[319338866,1710673840483,-500.0,0.00015479,2]
[319338867,1710673840492,-500.0,0.00015479,2]
[319338868,1710673840502,-500.0,0.00015479,2]
[319338869,1710673840511,-635.63,0.00015479,2]
[319338870,1710673840522,-500.0,0.00015479,2]
[319338871,1710673840531,-500.0,0.00015479,2]
[319338872,1710673840540,-500.0,0.00015479,2]
[319338873,1710673840549,-500.0,0.00015479,2]
[319338874,1710673840560,-500.0,0.00015479,2]
[319338875,1710673840571,-500.0,0.00015479,2]
[319338876,1710673840580,-500.0,0.00015479,2]
[319338877,1710673840591,-500.0,0.00015479,2]
[319338878,1710673840601,-500.0,0.00015479,2]
[319338879,1710673840611,-500.0,0.00015479,2]
[319338880,1710673840620,-500.0,0.00015479,2]
[319338881,1710673840629,-500.0,0.00015479,2]
[319338882,1710673840638,-170.8,0.00015479,2]
[319338883,1710673840647,-500.0,0.00015479,2]
[319338884,1710673840657,-500.0,0.00015479,2]
[319338885,1710673840667,-500.0,0.00015479,2]
[319338886,1710673840676,-500.0,0.00015479,2]
[319338887,1710673840685,-418.28,0.00015479,2]
[319338888,1710673840694,-500.0,0.00015479,2]
[319338889,1710673840703,-500.0,0.00015479,2]
[319338890,1710673840713,-500.0,0.00015479,2]
[319338891,1710673840721,-176.96,0.00015479,2]
[319338892,1710673840729,-519.09,0.00015479,2]
[319338893,1710673840739,-519.09,0.00015479,2]
[319338894,1710673840748,-519.09,0.00015479,2]
[319338895,1710673840757,-519.09,0.00015479,2]
[319338896,1710673840766,-519.09,0.00015479,2]
[319338897,1710673840776,-519.09,0.00015479,2]
[319338898,1710673840785,-519.09,0.00015479,2]
[319338899,1710673840794,-519.09,0.00015479,2]
[319338900,1710673840803,-500.0,0.00015479,2]
[319338901,1710673840812,-500.0,0.00015479,2]
[319338902,1710673840821,-500.0,0.00015479,2]
[319338903,1710673840831,-500.0,0.00015479,2]
[319338904,1710673840841,-500.0,0.00015479,2]
[319338905,1710673840851,-500.0,0.00015479,2]
[319338906,1710673840861,-586.4234425,0.00015479,2]
[319338907,1710673840870,-500.0,0.00015479,2]
[319338908,1710673840878,-500.0,0.00015479,2]
[319338909,1710673840887,-500.0,0.00015479,2]
[319338910,1710673840896,-500.0,0.00015479,2]
[319338911,1710673840905,-500.0,0.00015479,2]
[319338912,1710673840914,-500.0,0.00015479,2]
[319338913,1710673840923,-500.0,0.00015479,2]
[319338914,1710673840932,-500.0,0.00015479,2]
[319338915,1710673840941,-358.93,0.00015479,2]
[319338916,1710673840950,-276.58,0.00015479,2]
[319338917,1710673840960,-500.0,0.00015479,2]
[319338918,1710673840969,-508.3550231,0.00015479,2]
[319338919,1710673840979,-628.76,0.00015479,2]
[319338920,1710673840988,-500.0,0.00015479,2]
[319338921,1710673840997,-500.0,0.00015479,2]
[319338922,1710673841006,-500.0,0.00015479,2]
[319338923,1710673841015,-500.0,0.00015479,2]
[319338924,1710673841023,-500.0,0.00015479,2]
[319338925,1710673841033,-500.0,0.00015479,2]
[319338926,1710673841042,-500.0,0.00015479,2]
[319338927,1710673841051,-500.0,0.00015479,2]
[319338928,1710673841060,-500.0,0.00015479,2]
[319338929,1710673841069,-500.0,0.00015479,2]
[319338930,1710673841078,-500.0,0.00015479,2]
[319338931,1710673841089,-500.0,0.00015479,2]
[319338932,1710673841098,-500.0,0.00015479,2]
[319338933,1710673841107,-500.0,0.00015479,2]
[319338934,1710673841116,-500.0,0.00015479,2]
[319338935,1710673841126,-500.0,0.00015479,2]
[319338936,1710673841135,-500.0,0.00015479,2]
[319338937,1710673841144,-500.0,0.00015479,2]
[319338938,1710673841154,-418.07087895,0.00015479,2]
[319338939,1710673841163,-500.0,0.00015479,2]
[319338940,1710673841172,-500.0,0.00015479,2]
[319338941,1710673841181,-500.0,0.00015479,2]
[319338942,1710673841189,-500.0,0.00015479,2]
[319338943,1710673841199,-500.0,0.00015479,2]
[319338944,1710673841209,-500.0,0.00015479,2]
[319338945,1710673841218,-500.0,0.00015479,2]
[319338946,1710673841227,-500.0,0.00015479,2]
[319338947,1710673841237,-516.88,0.00015479,2]
[319338948,1710673841246,-516.88,0.00015479,2]
[319338949,1710673841255,-516.88,0.00015479,2]
[319338950,1710673841264,-516.88,0.00015479,2]
[319338951,1710673841274,-516.88,0.00015479,2]
[319338952,1710673841283,-516.88,0.00015479,2]
[319338953,1710673841292,-516.88,0.00015479,2]
[319338954,1710673841302,-516.88,0.00015479,2]
[319338955,1710673841311,-500.0,0.00015479,2]
[319338956,1710673841320,-500.0,0.00015479,2]
[319338957,1710673841330,-500.0,0.00015479,2]
[319338958,1710673841340,-500.0,0.00015479,2]
[319338959,1710673841349,-500.0,0.00015479,2]
[319338960,1710673841358,-500.0,0.00015479,2]
[319338961,1710673841366,-500.0,0.00015479,2]
[319338962,1710673841376,-500.0,0.00015479,2]
[319338963,1710673841386,-154.16,0.00015483,2]
[319338964,1710673841396,-12171.09961832,0.00015499,2]
[319338965,1710673841405,-156.6536012,0.000155,2]
[319338966,1710673841415,-600.0,0.00015535,2]
[319338967,1710673841424,-154.16,0.00015539,2]
[319338968,1710673841433,-154.16,0.00015594,2]
[319338969,1710673841443,-178.27,0.00015644,2]
[319338970,1710673841453,-154.16,0.00015649,2]
[319338971,1710673841463,-154.16,0.00015704,2]
[319338972,1710673841472,-8249.71603748,0.00015718,2]
[319338973,1710673841482,-154.16,0.00015759,2]
[319338974,1710673841491,-154.16,0.00015815,2]
[319338975,1710673841501,-167.0,0.00015831,2]
[319338976,1710673841510,-154.16,0.0001587,2]
[319338977,1710673841520,-543.3403171,0.00015876,2]
[319338978,1710673841529,-870.3329582,0.00015881,2]
[319338979,1710673841539,-154.16,0.00015925,2]
[319338980,1710673841549,-1283.84,0.00015959,2]
[319338981,1710673841559,-154.16,0.0001598,2]
[319338982,1710673841569,-643.24708674,0.00016,2]
[319338983,1710673841587,-500.0,0.00016012,2]
[319338984,1710673841597,-159.13078531,0.00016014,2]
[319338985,1710673841606,-154.16,0.00016035,2]
[319338986,1710673841616,-8249.71603748,0.00016036,2]
[319338987,1710673841626,-1867.23,0.00016116,2]
[319338988,1710673841635,-355.98,0.00016192,2]
[319338989,1710673841645,-500.0,0.00016354,2]
[319338990,1710673841656,-500.0,0.00016354,2]
[319338991,1710673841665,-500.0,0.00016354,2]
[319338992,1710673841675,-500.0,0.00016354,2]
[319338993,1710673841684,-641.75,0.00016354,2]
[319338994,1710673841694,-641.75,0.00016354,2]
[319338995,1710673841703,-641.75,0.00016354,2]
[319338996,1710673841712,-641.75,0.00016354,2]
[319338997,1710673841722,-4454.15,0.00016354,2]
[319338998,1710673841731,-4454.15,0.00016354,2]
[319338999,1710673841741,-4454.15,0.00016354,2]
[319339000,1710673841750,-4454.15,0.00016354,2]
[319339001,1710673841760,-8249.71603748,0.00016355,2]
[319339002,1710673841769,-870.3329582,0.00016384,2]
[319339003,1710673841778,-2000.0,0.000164,2]
[319339004,1710673841787,-237.930345,0.00016438,2]
[319339005,1710673841796,-483.49,0.00016438,2]
[319339006,1710673841805,-4000.0,0.00016438,2]
[319339007,1710673841814,-1216.46329409,0.000165,2]
[319339008,1710673841824,-400.0,0.00016556,2]
[319339009,1710673841833,-187.48,0.0001661,2]
[319339010,1710673841845,-8249.71603748,0.00016673,2]
[319339011,1710673841855,-1400.0,0.00016682,2]
[319339012,1710673841864,-170.41,0.00016712,2]